fUSD/lending_fUSD_20260531
["ID","MTS","AMOUNT","RATE_DAILY","PERIOD"]
[423507690,1780175441000,-500.0,0.00028726,8]
[423507694,1780175441000,-632.91659185,0.00028726,8]
[423507714,1780175441000,-500.0,0.00028726,2]
[423507704,1780175441000,-500.0,0.00028726,8]
[423507698,1780175441000,-500.0,0.00028726,8]
[423507699,1780175441000,-250.0,0.00028726,8]
[423507702,1780175441000,-500.0,0.00028726,8]
[423507693,1780175441000,-500.0,0.00028726,8]
[423507700,1780175441000,-500.0,0.00028726,8]
[423507703,1780175441000,-500.0,0.00028726,8]
[423507696,1780175441000,-500.0,0.00028726,8]
[423507701,1780175441000,-500.0,0.00028726,8]
[423507716,1780175441000,-500.0,0.00028726,2]
[423507707,1780175441000,-500.0,0.00028726,8]
[423507706,1780175441000,-500.0,0.00028726,8]
[423507695,1780175441000,-150.0,0.00028726,8]
[423507734,1780175441000,-500.0,0.00028726,2]
[423507724,1780175441000,-500.0,0.00028726,8]
[423507742,1780175441000,-3065.32,0.00028859,2]
[423507766,1780175441000,-155.0,0.00029,2]
[423507771,1780175441000,-1329.17494721,0.00029033,2]
[423507770,1780175441000,-200.0,0.00029,2]
[423507769,1780175441000,-537.38,0.00029,2]
[423507772,1780175441000,-1329.17494721,0.00029053,2]
[423507773,1780175441000,-503.03352994,0.00029105,2]
[423507782,1780175441000,-503.03352994,0.00029295,2]
[423507774,1780175441000,-207.00864086,0.000292,2]
[423507784,1780175441000,-904.0,0.00029305,10]
[423507777,1780175441000,-1329.17494721,0.0002922,2]
[423507778,1780175441000,-5166.13820077,0.00029222,2]
[423507765,1780175441000,-155.0,0.00029,2]
[423507776,1780175441000,-1329.17494721,0.00029208,2]
[423507781,1780175441000,-200.0,0.00029285,2]
[423507779,1780175441000,-166.55,0.0002923,2]
[423507783,1780175441000,-1592.19,0.000293,14]
[423507785,1780175441000,-1329.17494721,0.00029516,2]
[423507788,1780175441000,-178.63839966,0.00029564,2]
[423507786,1780175441000,-606.0,0.0002952,6]
[423507787,1780175441000,-317.6060545,0.00029564,2]
[423507790,1780175441000,-358.27599163,0.00029564,2]
[423507789,1780175441000,-368.7884705,0.00029564,2]
[423507791,1780175441000,-173.20544344,0.00029564,2]
[423507737,1780175441000,-443.15839363,0.00028726,2]
[423507780,1780175441000,-503.03352994,0.00029232,2]
[423507762,1780175441000,-396.55,0.00029,30]
[423507775,1780175441000,-503.03352994,0.00029202,2]
[423507764,1780175441000,-791.25,0.00029,30]
[423507767,1780175441000,-155.0,0.00029,2]
[423507746,1780175441000,-396.52,0.0002886,2]
[423507749,1780175441000,-503.03352994,0.00028997,2]
[423507750,1780175441000,-161.93,0.00029,2]
[423507748,1780175441000,-606.0,0.00028965,6]
[423507743,1780175441000,-742.24,0.00028859,2]
[423507741,1780175441000,-2839.02,0.00028859,2]
[423507744,1780175441000,-791.18,0.00028859,2]
[423507747,1780175441000,-150.0,0.00028897,2]
[423507745,1780175441000,-1774.83,0.0002886,2]
[423507761,1780175441000,-742.28,0.00029,30]
[423507751,1780175441000,-2162.0,0.00029,7]
[423507739,1780175441000,-562.0,0.00028795,5]
[423507763,1780175441000,-161.93,0.00029,2]
[423507755,1780175441000,-251.92,0.00029,30]
[423507768,1780175441000,-155.0,0.00029,2]
[423507759,1780175441000,-1774.84,0.00029,30]
[423507756,1780175441000,-561.72,0.00029,30]
[423507753,1780175441000,-166.26,0.00029,7]
[423507740,1780175441000,-209.00647482,0.000288,7]
[423507754,1780175441000,-593.07,0.00029,30]
[423507758,1780175441000,-2839.08,0.00029,30]
[423507760,1780175441000,-3065.37,0.00029,30]
[423507752,1780175441000,-2162.0,0.00029,7]
[423507757,1780175441000,-161.93,0.00029,2]
[423507831,1780175442000,-503.03352994,0.00030132,2]
[423507824,1780175442000,-503.03352994,0.00030063,2]
[423507822,1780175442000,-4199.79,0.00030051,7]
[423507832,1780175442000,-170.66,0.00030137,2]
[423507833,1780175442000,-200.0,0.00030137,2]
[423507829,1780175442000,-1329.17494721,0.00030124,2]
[423507827,1780175442000,-503.03352994,0.00030122,2]
[423507834,1780175442000,-350.0,0.00030137,15]
[423507823,1780175442000,-503.03352994,0.00030061,2]
[423507826,1780175442000,-606.0,0.00030075,7]
[423507825,1780175442000,-1329.17494721,0.00030068,2]
[423507839,1780175442000,-267.455514,0.000302,2]
[423507847,1780175442000,-503.03352994,0.00030273,2]
[423507843,1780175442000,-518.66214634,0.00030262,2]
[423507848,1780175442000,-1329.17494721,0.00030299,2]
[423507849,1780175442000,-150.0,0.00030341,2]
[423507837,1780175442000,-928.0,0.000302,2]
[423507836,1780175442000,-1329.17494721,0.000302,2]
[423507845,1780175442000,-1393.43931419,0.00030262,2]
[423507846,1780175442000,-10653.85600918,0.00030262,2]
[423507844,1780175442000,-345.62642952,0.00030262,2]
[423507841,1780175442000,-1329.17494721,0.00030218,2]
[423507840,1780175442000,-503.03352994,0.00030201,2]
[423507818,1780175442000,-737.42,0.000298,7]
[423507838,1780175442000,-315.0,0.000302,2]
[423507814,1780175442000,-503.03352994,0.00029682,2]
[423507792,1780175442000,-327.61658258,0.00029564,2]
[423507816,1780175442000,-503.03352994,0.00029727,2]
[423507793,1780175442000,-180.10403397,0.00029564,2]
[423507842,1780175442000,-151.0,0.00030239,2]
[423507795,1780175442000,-311.99653076,0.00029564,2]
[423507794,1780175442000,-159.47271004,0.00029564,2]
[423507797,1780175442000,-169.3296514,0.00029564,2]
[423507806,1780175442000,-152.0,0.00029628,30]
[423507807,1780175442000,-153.0,0.00029628,30]
[423507803,1780175442000,-166.0,0.00029628,30]
[423507804,1780175442000,-156.0,0.00029628,30]
[423507796,1780175442000,-170.2645845,0.00029564,2]
[423507802,1780175442000,-1329.17494721,0.0002961,2]
[423507799,1780175442000,-363.54238875,0.00029565,2]
[423507817,1780175442000,-1074.08,0.000298,7]
[423507798,1780175442000,-158.82865504,0.00029564,2]
[423507800,1780175442000,-158.01165395,0.00029565,2]
[423507808,1780175442000,-322.0,0.00029628,30]
[423507805,1780175442000,-223.0,0.00029628,30]
[423507820,1780175442000,-1000.0,0.00029999,4]
[423507810,1780175442000,-156.0,0.00029628,30]
[423507821,1780175442000,-503.03352994,0.00030001,2]
[423507812,1780175442000,-156.0,0.00029628,30]
[423507809,1780175442000,-153.0,0.00029628,30]
[423507811,1780175442000,-631.0,0.00029628,30]
[423507813,1780175442000,-1329.17494721,0.00029651,2]
[423507815,1780175442000,-1000.0,0.000297,7]
[423507819,1780175442000,-1329.17494721,0.00029915,2]
[423507801,1780175442000,-503.03352994,0.00029571,2]
[423507856,1780175442000,-537.41398745,0.00030448,2]
[423507835,1780175442000,-363.342293,0.00030137,2]
[423507850,1780175442000,-1592.19,0.000304,14]
[423507899,1780175442000,-499.98173667,0.00030551,2]
[423507904,1780175442000,-265.92,0.00029,30]
[423507906,1780175442000,-265.92,0.00029,30]
[423507908,1780175442000,-829.19321054,0.00030551,2]
[423507910,1780175442000,-1329.17494721,0.0003058,2]
[423507914,1780175442000,-168.0,0.00030628,30]
[423507916,1780175442000,-156.0,0.00030628,30]
[423507917,1780175442000,-223.0,0.00030628,30]
[423507918,1780175442000,-152.0,0.00030628,30]
[423507921,1780175442000,-153.0,0.00030628,30]
[423507920,1780175442000,-322.0,0.00030628,30]
[423507919,1780175442000,-153.0,0.00030628,30]
[423507897,1780175442000,-7600.63084868,0.000305,60]
[423507933,1780175442000,-40455.75561281,0.000309,90]
[423507925,1780175442000,-606.0,0.00030629,7]
[423507932,1780175442000,-644.2,0.00030818,7]
[423507934,1780175442000,-1839.61224414,0.000309,90]
[423507927,1780175442000,-1329.17494721,0.00030662,2]
[423507922,1780175442000,-156.0,0.00030628,30]
[423507928,1780175442000,-475.25347384,0.00030701,54]
[423507931,1780175442000,-1551.0,0.00030772,120]
[423507929,1780175442000,-475.25347384,0.00030701,54]
[423507924,1780175442000,-156.0,0.00030628,30]
[423507926,1780175442000,-1329.17494721,0.00030643,2]
[423507923,1780175442000,-631.0,0.00030628,30]
[423507861,1780175442000,-360.20806794,0.00030448,2]
[423507930,1780175442000,-1329.17494721,0.00030738,2]
[423507887,1780175442000,-12004.25049394,0.000305,60]
[423507912,1780175442000,-1329.17494721,0.00030608,2]
[423507882,1780175442000,-117342.60847274,0.000305,60]
[423507854,1780175442000,-357.27679932,0.00030448,2]
[423507852,1780175442000,-213.09926214,0.00030448,2]
[423507851,1780175442000,-228.34467194,0.00030448,2]
[423507860,1780175442000,-226.71594227,0.00030448,2]
[423507853,1780175442000,-476.40908175,0.00030448,2]
[423507889,1780175442000,-1211.5065005,0.000305,60]
[423507858,1780175442000,-346.41088687,0.00030448,2]
[423507855,1780175442000,-553.18270575,0.00030448,2]
[423507859,1780175442000,-491.42487386,0.00030448,2]
[423507862,1780175442000,-288.82223614,0.00030448,2]
[423507863,1780175442000,-318.94542007,0.00030448,2]
[423507865,1780175442000,-340.52916899,0.00030448,2]
[423507880,1780175442000,-166.26,0.000305,7]
[423507857,1780175442000,-267.85489569,0.00030448,2]
[423507878,1780175442000,-261.91243304,0.00030483,2]
[423507864,1780175442000,-467.99479615,0.00030448,2]
[423507867,1780175442000,-222.73629086,0.00030448,2]
[423507869,1780175442000,-317.65731008,0.00030448,2]
[423507868,1780175442000,-210.44668597,0.00030448,2]
[423507866,1780175442000,-338.65930281,0.00030448,2]
[423507894,1780175442000,-1028.48,0.000305,60]
[423507872,1780175442000,-243.43735347,0.00030448,2]
[423507870,1780175442000,-545.31358313,0.00030448,2]
[423507874,1780175442000,-316.0233079,0.00030448,2]
[423507888,1780175442000,-733.44231273,0.000305,60]
[423507891,1780175442000,-573.94647141,0.000305,60]
[423507876,1780175442000,-1329.17494721,0.00030476,2]
[423507937,1780175443000,-8340.85204745,0.000309,90]
[423507936,1780175443000,-452.0,0.00029565,10]
[423507935,1780175443000,-1000.0,0.00029285,2]
[423507939,1780175443000,-553.67,0.00027732,30]
[423507941,1780175443000,-222.147029,0.00027872,7]
[423507938,1780175443000,-584.55,0.00027731,30]
[423507940,1780175443000,-249.16,0.0002774,30]
[423507944,1780175445000,-383.59,0.00027397,2]
[423507948,1780175445000,-275.93,0.00027767,2]
[423507946,1780175445000,-275.93,0.00027722,7]
[423507943,1780175445000,-1116.41,0.00027397,2]
[423507947,1780175445000,-275.93,0.00027745,30]
[423507945,1780175445000,-275.93,0.000277,2]
[423507952,1780175445000,-275.93,0.00027858,7]
[423507956,1780175445000,-584.55,0.00028013,2]
[423507949,1780175445000,-275.93,0.0002779,7]
[423507961,1780175445000,-249.16,0.0002816,30]
[423507953,1780175445000,-362.402971,0.00027872,7]
[423507951,1780175445000,-275.93,0.00027835,2]
[423507954,1780175445000,-553.67,0.00027872,7]
[423507950,1780175445000,-275.93,0.00027813,30]
[423507957,1780175445000,-553.67,0.00028013,2]
[423507959,1780175445000,-553.67,0.00028154,30]
[423507958,1780175445000,-249.16,0.0002802,2]
[423507960,1780175445000,-584.55,0.00028154,30]
[423507963,1780175445000,-553.67,0.00028295,7]
[423507965,1780175445000,-474.60489346,0.00028436,2]
[423507964,1780175445000,-249.16,0.000283,7]
[423507962,1780175445000,-584.55,0.00028295,7]
[423507955,1780175445000,-249.16,0.0002788,7]
[423508011,1780175446000,-507.98895421,0.00031036,2]
[423508004,1780175446000,-655.23316515,0.00031036,2]
[423508002,1780175446000,-535.70979138,0.00031036,2]
[423507997,1780175446000,-173.58984158,0.00031036,2]
[423507995,1780175446000,-535.91519898,0.00031036,2]
[423507996,1780175446000,-737.576941,0.00031036,2]
[423508000,1780175446000,-716.55198327,0.00031036,2]
[423507999,1780175446000,-223.07178994,0.00031036,2]
[423508005,1780175446000,-218.99002545,0.00031036,2]
[423507998,1780175446000,-407.66563913,0.00031036,2]
[423508006,1780175446000,-540.31210192,0.00031036,2]
[423508010,1780175446000,-510.79375349,0.00031036,2]
[423508007,1780175446000,-577.64447227,0.00031036,2]
[423508013,1780175446000,-364.18479145,0.00031036,2]
[423508008,1780175446000,-478.41813011,0.00031036,2]
[423507994,1780175446000,-635.212109,0.00031036,2]
[423508012,1780175446000,-423.99340393,0.00031036,2]
[423508009,1780175446000,-623.99306153,0.00031036,2]
[423508019,1780175446000,-231.01700694,0.00031037,2]
[423508018,1780175446000,-727.0847775,0.00031037,2]
[423508026,1780175446000,-523.82486609,0.00031073,2]
[423508020,1780175446000,-486.87470693,0.00031037,2]
[423508017,1780175446000,-476.48596512,0.00031036,2]
[423508014,1780175446000,-445.47258172,0.00031036,2]
[423508003,1780175446000,-519.61633031,0.00031036,2]
[423507990,1780175446000,-195.42588396,0.00031032,2]
[423507982,1780175446000,-3638.0,0.00030927,2]
[423507991,1780175446000,-208.55982424,0.00031032,2]
[423507971,1780175446000,-553.67,0.00028577,30]
[423507972,1780175446000,-249.16,0.0002858,30]
[423507974,1780175446000,-8270.14680739,0.000309,90]
[423507973,1780175446000,-1000.0,0.00030749,2]
[423507968,1780175446000,-553.67,0.00028436,2]
[423507967,1780175446000,-109.94510654,0.00028436,2]
[423507970,1780175446000,-584.55,0.00028577,30]
[423507966,1780175446000,-275.93,0.00027881,30]
[423507969,1780175446000,-249.16,0.0002844,2]
[423507989,1780175446000,-214.64875666,0.00031032,2]
[423507976,1780175446000,-90583.63328821,0.000309,90]
[423507992,1780175446000,-456.68934388,0.00031036,2]
[423507986,1780175446000,-223.16276797,0.00031032,2]
[423508015,1780175446000,-189.29631364,0.00031036,2]
[423507975,1780175446000,-510.0,0.000309,90]
[423507977,1780175446000,-901.0,0.000309,30]
[423507988,1780175446000,-193.57721967,0.00031032,2]
[423507978,1780175446000,-1272.0,0.00030927,2]
[423507983,1780175446000,-932.0,0.00030927,2]
[423507985,1780175446000,-224.00077769,0.00031032,2]
[423507980,1780175446000,-1233.597,0.00030927,2]
[423507984,1780175446000,-185.0,0.00031024,2]
[423507993,1780175446000,-426.19852428,0.00031036,2]
[423508001,1780175446000,-166.55246395,0.00031036,2]
[423507987,1780175446000,-259.35522712,0.00031032,2]
[423508016,1780175446000,-420.89337194,0.00031036,2]
[423508060,1780175446000,-198.85,0.0003219,31]
[423508023,1780175446000,-380.39425411,0.00031071,2]
[423508053,1780175446000,-6066.0,0.00031757,2]
[423508058,1780175446000,-166.26,0.000319,7]
[423508055,1780175446000,-5166.13820077,0.00031826,2]
[423508054,1780175446000,-1000.0,0.00031784,21]
[423508061,1780175446000,-224.0,0.000322,12]
[423508056,1780175446000,-14546.44500031,0.00031854,2]
[423508052,1780175446000,-606.0,0.00031739,9]
[423508059,1780175446000,-2776.888,0.0003219,31]
[423508062,1780175446000,-300.8,0.000322,12]
[423508057,1780175446000,-150.0,0.00031858,2]
[423508064,1780175446000,-1000.0,0.00032293,9]
[423508047,1780175446000,-322.0,0.00031628,30]
[423508066,1780175446000,-170.0,0.00032344,2]
[423508065,1780175446000,-606.0,0.00032294,9]
[423508069,1780175446000,-194.951,0.00032344,2]
[423508075,1780175446000,-928.0,0.00032344,2]
[423508070,1780175446000,-247.523,0.00032344,2]
[423508074,1780175446000,-1356.0,0.00032344,2]
[423508073,1780175446000,-245.485,0.00032344,2]
[423508072,1780175446000,-151.0,0.00032344,2]
[423508071,1780175446000,-250.0,0.00032344,2]
[423508068,1780175446000,-150.305,0.00032344,2]
[423508076,1780175446000,-3184.0,0.00032344,2]
[423508022,1780175446000,-383.81816517,0.00031071,2]
[423508067,1780175446000,-150.0,0.00032344,2]
[423508045,1780175446000,-152.0,0.00031628,30]
[423508063,1780175446000,-151.0,0.0003221,5]
[423508044,1780175446000,-223.0,0.00031628,30]
[423508041,1780175446000,-895.68997908,0.00031625,2]
[423508025,1780175446000,-263.16441095,0.00031071,2]
[423508024,1780175446000,-273.6796174,0.00031071,2]
[423508029,1780175446000,-606.0,0.00031184,8]
[423508028,1780175446000,-1000.0,0.00031183,8]
[423508037,1780175446000,-150000.0,0.000315,120]
[423508033,1780175446000,-980.09273691,0.00031202,2]
[423508035,1780175446000,-434.0201359,0.00031402,2]
[423508030,1780175446000,-160.0,0.000312,7]
[423508032,1780175446000,-737.42,0.000312,7]
[423508036,1780175446000,-250.0,0.00031404,7]
[423508027,1780175446000,-200.0,0.00031096,2]
[423508021,1780175446000,-474.03496185,0.00031037,2]
[423508031,1780175446000,-1074.08,0.000312,7]
[423508038,1780175446000,-4199.79,0.00031585,14]
[423508039,1780175446000,-794.01513625,0.00031625,2]
[423508043,1780175446000,-156.0,0.00031628,30]
[423508042,1780175446000,-779.99132691,0.00031625,2]
[423508046,1780175446000,-153.0,0.00031628,30]
[423508048,1780175446000,-153.0,0.00031628,30]
[423508049,1780175446000,-156.0,0.00031628,30]
[423508050,1780175446000,-631.0,0.00031628,30]
[423508040,1780175446000,-921.97117624,0.00031625,2]
[423508034,1780175446000,-155.0,0.00031331,3]
[423508051,1780175446000,-156.0,0.00031628,30]
[423508112,1780175447000,-322.0,0.00033628,30]
[423508117,1780175447000,-644.2,0.00033631,30]
[423508120,1780175447000,-1226.0,0.00033927,2]
[423508111,1780175447000,-157.0,0.00033628,30]
[423508116,1780175447000,-156.0,0.00033628,30]
[423508109,1780175447000,-223.0,0.00033628,30]
[423508108,1780175447000,-156.0,0.00033628,30]
[423508107,1780175447000,-150.0,0.00033451,2]
[423508102,1780175447000,-500.0,0.00033194,14]
[423508118,1780175447000,-216.89957659,0.00033804,14]
[423508103,1780175447000,-518.66214634,0.00033227,2]
[423508114,1780175447000,-156.0,0.00033628,30]
[423508124,1780175447000,-350.0,0.00033973,5]
[423508113,1780175447000,-153.0,0.00033628,30]
[423508123,1780175447000,-606.0,0.00033958,11]
[423508115,1780175447000,-631.0,0.00033628,30]
[423508119,1780175447000,-166.26,0.000339,7]
[423508125,1780175447000,-151.0,0.00034182,7]
[423508131,1780175447000,-606.0,0.00034513,11]
[423508126,1780175447000,-1074.08,0.000342,30]
[423508132,1780175447000,-198.17,0.0003459,30]
[423508136,1780175447000,-322.0,0.00034628,30]
[423508128,1780175447000,-434.0201359,0.00034268,2]
[423508110,1780175447000,-152.0,0.00033628,30]
[423508122,1780175447000,-932.0,0.00033927,2]
[423508106,1780175447000,-606.0,0.00033403,10]
[423508077,1780175447000,-160.48,0.00032365,2]
[423508101,1780175447000,-4199.79,0.00033119,14]
[423508130,1780175447000,-5166.13820077,0.0003443,2]
[423508078,1780175447000,-952.81816349,0.00032509,2]
[423508087,1780175447000,-153.0,0.00032628,30]
[423508083,1780175447000,-223.0,0.00032628,30]
[423508079,1780175447000,-1106.36541149,0.00032509,2]
[423508081,1780175447000,-608.0,0.00032603,2]
[423508086,1780175447000,-322.0,0.00032628,30]
[423508080,1780175447000,-1074.8279749,0.00032509,2]
[423508082,1780175447000,-156.0,0.00032628,30]
[423508085,1780175447000,-153.0,0.00032628,30]
[423508089,1780175447000,-631.0,0.00032628,30]
[423508090,1780175447000,-156.0,0.00032628,30]
[423508088,1780175447000,-156.0,0.00032628,30]
[423508084,1780175447000,-152.0,0.00032628,30]
[423508094,1780175447000,-3676.3219,0.00032781,7]
[423508091,1780175447000,-1074.08,0.000327,7]
[423508093,1780175447000,-1096.9025,0.00032717,2]
[423508095,1780175447000,-523.32320834,0.00032781,7]
[423508099,1780175447000,-923.04189072,0.00033034,75]
[423508097,1780175447000,-201.03772256,0.00032877,2]
[423508098,1780175447000,-170.66,0.00032877,2]
[423508096,1780175447000,-606.0,0.00032848,10]
[423508100,1780175447000,-923.04189072,0.00033034,75]
[423508092,1780175447000,-737.42,0.000327,7]
[423508105,1780175447000,-500.0,0.000334,7]
[423508104,1780175447000,-634.5629145,0.0003333,2]
[423508134,1780175447000,-223.0,0.00034628,30]
[423508121,1780175447000,-3638.0,0.00033927,2]
[423508133,1780175447000,-156.0,0.00034628,30]
[423508169,1780175447000,-250.0,0.0003533,7]
[423508163,1780175447000,-1000.0,0.00035129,69]
[423508162,1780175447000,-150.0,0.00035124,2]
[423508168,1780175447000,-300.0,0.00035314,2]
[423508165,1780175447000,-301.06704068,0.00035314,2]
[423508166,1780175447000,-300.0,0.00035314,2]
[423508170,1780175447000,-423.041943,0.0003533,7]
[423508176,1780175447000,-152.0,0.00035461,30]
[423508173,1780175447000,-973.87612338,0.00035368,87]
[423508179,1780175447000,-3424.64105182,0.00035616,2]
[423508174,1780175447000,-973.87612338,0.00035368,87]
[423508177,1780175447000,-14546.44500031,0.00035505,2]
[423508171,1780175447000,-3184.0,0.00035344,2]
[423508172,1780175447000,-222.92890284,0.00035361,7]
[423508175,1780175447000,-482.41,0.00035439,30]
[423508181,1780175447000,-500.0,0.00035616,7]
[423508180,1780175447000,-22881.92531617,0.00035616,10]
[423508185,1780175447000,-170.66,0.00035616,2]
[423508182,1780175447000,-500.0,0.00035616,7]
[423508186,1780175447000,-624.0744058,0.00035616,2]
[423508183,1780175447000,-500.0,0.00035616,7]
[423508188,1780175447000,-156.0,0.00035628,30]
[423508187,1780175447000,-606.0,0.00035622,13]
[423508189,1780175447000,-223.0,0.00035628,30]
[423508129,1780175447000,-634.5629145,0.0003433,2]
[423508164,1780175447000,-495.41,0.0003513,69]
[423508161,1780175447000,-350.0,0.00035074,37]
[423508178,1780175447000,-482.41,0.00035578,30]
[423508160,1780175447000,-606.0,0.00035067,12]
[423508135,1780175447000,-152.0,0.00034628,30]
[423508167,1780175447000,-527.36598462,0.00035314,2]
[423508127,1780175447000,-737.42,0.000342,30]
[423508141,1780175447000,-500.0,0.00034637,120]
[423508142,1780175447000,-500.0,0.00034637,120]
[423508139,1780175447000,-631.0,0.00034628,30]
[423508137,1780175447000,-153.0,0.00034628,30]
[423508143,1780175447000,-234.60147884,0.00034637,120]
[423508184,1780175447000,-531.29153184,0.00035616,7]
[423508149,1780175447000,-500.0,0.00034637,120]
[423508148,1780175447000,-500.0,0.00034637,120]
[423508144,1780175447000,-294.29209536,0.00034637,120]
[423508138,1780175447000,-156.0,0.00034628,30]
[423508146,1780175447000,-500.0,0.00034637,120]
[423508151,1780175447000,-500.0,0.00034637,120]
[423508155,1780175447000,-1500.0,0.00034795,2]
[423508140,1780175447000,-156.0,0.00034628,30]
[423508156,1780175447000,-1001.0,0.00034849,120]
[423508152,1780175447000,-500.0,0.00034637,2]
[423508159,1780175447000,-1047.61960593,0.00035,120]
[423508150,1780175447000,-500.0,0.00034637,120]
[423508158,1780175447000,-1000.0,0.00034999,6]
[423508153,1780175447000,-4199.79,0.00034653,30]
[423508154,1780175447000,-6066.0,0.00034757,2]
[423508157,1780175447000,-350.0,0.00034931,5]
[423508147,1780175447000,-502.47837667,0.00034637,120]
[423508145,1780175447000,-500.0,0.00034637,2]
[423508212,1780175448000,-1000.0,0.00036209,114]
[423508210,1780175448000,-518.66214634,0.00036191,2]
[423508211,1780175448000,-177.19,0.00036199,120]
[423508220,1780175448000,-482.41,0.00036414,30]
[423508209,1780175448000,-4199.79,0.00036188,30]
[423508218,1780175448000,-10897.0,0.000364,30]
[423508214,1780175448000,-211.38403459,0.00036225,2]
[423508208,1780175448000,-606.0,0.00036177,13]
[423508213,1780175448000,-495.41,0.0003621,114]
[423508217,1780175448000,-1000.0,0.00036374,12]
[423508215,1780175448000,-482.41,0.00036275,30]
[423508216,1780175448000,-423.041943,0.0003633,7]
[423508206,1780175448000,-151.0,0.00036153,30]
[423508219,1780175448000,-160.48,0.0003641,2]
[423508205,1780175448000,-482.41,0.00036136,30]
[423508192,1780175448000,-153.0,0.00035628,30]
[423508207,1780175448000,-1000.0,0.00036176,13]
[423508221,1780175448000,-644.2,0.00036443,30]
[423508190,1780175448000,-152.0,0.00035628,30]
[423508193,1780175448000,-161.0,0.00035628,30]
[423508191,1780175448000,-322.0,0.00035628,30]
[423508194,1780175448000,-631.0,0.00035628,30]
[423508198,1780175448000,-1074.08,0.000357,30]
[423508195,1780175448000,-156.0,0.00035628,30]
[423508196,1780175448000,-1000.0,0.00035669,98]
[423508199,1780175448000,-737.42,0.000357,30]
[423508201,1780175448000,-561.1383,0.00035837,2]
[423508200,1780175448000,-482.41,0.00035718,30]
[423508204,1780175448000,-1000.0,0.00036098,40]
[423508203,1780175448000,-177.0,0.00036016,2]
[423508202,1780175448000,-482.41,0.00035996,30]
[423508197,1780175448000,-495.41,0.0003567,98]
[423508227,1780175448000,-495.41,0.0003676,120]
[423508255,1780175448000,-1000.0,0.00037325,3]
[423508229,1780175448000,-482.41,0.00036832,30]
[423508256,1780175448000,-27214.91544163,0.00037326,2]
[423508251,1780175448000,-1425.13119179,0.00037293,2]
[423508250,1780175448000,-158.3379102,0.00037288,2]
[423508245,1780175448000,-693.70304349,0.000372,120]
[423508252,1780175448000,-638.0,0.00037293,3]
[423508253,1780175448000,-495.41,0.000373,60]
[423508254,1780175448000,-928.26091419,0.00037325,2]
[423508249,1780175448000,-606.0,0.00037286,14]
[423508248,1780175448000,-693.70304348,0.000372,120]
[423508247,1780175448000,-693.70304348,0.000372,120]
[423508246,1780175448000,-693.70304348,0.000372,120]
[423508244,1780175448000,-156.309999,0.000372,15]
[423508222,1780175448000,-482.41,0.00036554,30]
[423508237,1780175448000,-737.42,0.00037,30]
[423508238,1780175448000,-5166.13820077,0.00037034,2]
[423508241,1780175448000,-272.17048114,0.000371,30]
[423508239,1780175448000,-272.17048115,0.000371,30]
[423508223,1780175448000,-155.0,0.00036586,3]
[423508228,1780175448000,-156.53860551,0.00036822,2]
[423508224,1780175448000,-482.41,0.00036693,30]
[423508230,1780175448000,-150.0,0.0003688,2]
[423508242,1780175448000,-482.44,0.00037111,30]
[423508226,1780175448000,-561.1383,0.00036733,2]
[423508225,1780175448000,-606.0,0.00036731,14]
[423508231,1780175448000,-164.37326,0.00036916,15]
[423508243,1780175448000,-434.0201359,0.00037134,2]